fUST/lending_fUST_20260128
["ID","MTS","AMOUNT","RATE_DAILY","PERIOD"]
[403824563,1769565970092,500.0,0.00034955,120]
[403824564,1769565970340,511.94965258,0.00034955,120]
[403824572,1769566224944,-287.0,0.00011806,2]
[403824573,1769566224967,-586.0,0.00011806,2]
[403824574,1769566224990,-127.0,0.00011807,2]
[403824587,1769566232188,501.54765252,0.00034955,120]
[403824588,1769566232201,-500.0,0.00011807,2]
[403824589,1769566232384,-192.95937754,0.00011807,2]
[403824590,1769566232395,-267.5933646,0.00011807,2]
[403824591,1769566232403,-254.37369866,0.00011807,2]
[403824592,1769566232412,-500.0,0.00011808,2]
[403824593,1769566232422,-1282.93706855,0.00011809,2]
[403824594,1769566232433,-60779.5945504,0.00011809,2]
[403824595,1769566232444,-2898.06756959,0.00011809,2]
[403824596,1769566232462,-77754.33208846,0.00011809,2]
[403824704,1769566238026,-500.0,0.00011806,2]
[403824705,1769566238036,-500.0,0.00011806,2]
[403824706,1769566238045,-500.0,0.00011806,2]
[403824707,1769566238054,-500.0,0.00011806,2]
[403824708,1769566238063,-484.84861749,0.00011806,2]
[403824709,1769566238072,-226.34212983,0.00011806,2]
[403824710,1769566238081,-500.0,0.00011806,2]
[403824711,1769566238090,-500.0,0.00011806,2]
[403824712,1769566238099,-500.0,0.00011806,2]
[403824713,1769566238107,-500.0,0.00011806,2]
[403824714,1769566238116,-500.0,0.00011806,2]
[403824715,1769566238126,-276.69512391,0.00011806,2]
[403824716,1769566238135,-500.0,0.00011806,2]
[403824717,1769566238144,-500.0,0.00011806,2]
[403824718,1769566238153,-500.0,0.00011806,2]
[403824719,1769566238162,-500.0,0.00011806,2]
[403824720,1769566238171,-500.0,0.00011806,2]
[403824721,1769566238180,-500.0,0.00011806,2]
[403824722,1769566238189,-500.0,0.00011806,2]
[403824723,1769566238197,-500.0,0.00011806,2]
[403824724,1769566238206,-500.0,0.00011806,2]
[403824725,1769566238215,-264.81201823,0.00011806,2]
[403824726,1769566238226,-235.18798177,0.00011806,2]
[403824727,1769566238236,-500.0,0.00011806,2]
[403824728,1769566238244,-500.0,0.00011806,2]
[403824729,1769566238254,-500.0,0.00011806,2]
[403824730,1769566238262,-500.0,0.00011806,2]
[403824731,1769566238271,-500.0,0.00011806,2]
[403824733,1769566238280,-355.21500395,0.00011806,2]
[403824735,1769566238291,-144.78499605,0.00011806,2]
[403824737,1769566238301,-500.0,0.00011806,2]
[403824739,1769566238310,-275.22485905,0.00011806,2]
[403824741,1769566238321,-224.77514095,0.00011806,2]
[403824743,1769566238331,-500.0,0.00011806,2]
[403824745,1769566238339,-500.0,0.00011806,2]
[403824747,1769566238349,-500.0,0.00011806,2]
[403824748,1769566238358,-500.0,0.00011806,2]
[403824749,1769566238367,-500.0,0.00011806,2]
[403824750,1769566238376,-500.0,0.00011806,2]
[403824752,1769566238385,-500.0,0.00011806,2]
[403824754,1769566238394,-622.50816221,0.00011806,2]
[403824756,1769566238403,-500.0,0.00011806,2]
[403824757,1769566238412,-500.0,0.00011806,2]
[403824759,1769566238422,-500.0,0.00011806,2]
[403824761,1769566238431,-500.0,0.00011806,2]
[403824763,1769566238440,-185.7,0.00011806,2]
[403824765,1769566238448,-500.0,0.00011806,2]
[403824767,1769566238457,-500.0,0.00011806,2]
[403824769,1769566238466,-576.54804561,0.00011806,2]
[403824771,1769566238475,-500.0,0.00011806,2]
[403824773,1769566238485,-500.0,0.00011806,2]
[403824775,1769566238495,-500.0,0.00011806,2]
[403824777,1769566238504,-500.0,0.00011806,2]
[403824779,1769566238512,-500.0,0.00011806,2]
[403824781,1769566238522,-500.0,0.00011806,2]
[403824783,1769566238531,-500.0,0.00011806,2]
[403824785,1769566238540,-500.0,0.00011806,2]
[403824787,1769566238549,-500.0,0.00011806,2]
[403824789,1769566238558,-500.0,0.00011806,2]
[403824791,1769566238567,-500.0,0.00011806,2]
[403824793,1769566238577,-500.0,0.00011806,2]
[403824795,1769566238586,-500.0,0.00011806,2]
[403824797,1769566238595,-500.0,0.00011806,2]
[403824799,1769566238604,-384.1580844,0.00011806,2]
[403824801,1769566238614,-500.0,0.00011806,2]
[403824802,1769566238623,-500.0,0.00011806,2]
[403824803,1769566238633,-500.0,0.00011806,2]
[403824804,1769566238643,-500.0,0.00011806,2]
[403824805,1769566238651,-500.0,0.00011806,2]
[403824806,1769566238661,-500.0,0.00011806,2]
[403824807,1769566238670,-500.0,0.00011806,2]
[403824808,1769566238679,-289.83080067,0.00011806,2]
[403824809,1769566238690,-210.16919933,0.00011806,2]
[403824810,1769566238701,-236.77583541,0.00011806,2]
[403824811,1769566238712,-263.22416459,0.00011806,2]
[403824812,1769566238721,-500.0,0.00011806,2]
[403824813,1769566238731,-500.0,0.00011806,2]
[403824814,1769566238742,-322.98778768,0.00011806,2]
[403824815,1769566238754,-177.01221232,0.00011806,2]
[403824816,1769566238763,-500.0,0.00011806,2]
[403824817,1769566238773,-500.0,0.00011806,2]
[403824818,1769566238787,-500.0,0.00011806,2]
[403824819,1769566238796,-500.0,0.00011806,2]
[403824820,1769566238805,-174.98855655,0.00011806,2]
[403824821,1769566238816,-325.01144345,0.00011806,2]
[403824822,1769566238827,-500.0,0.00011806,2]
[403824823,1769566238836,-500.0,0.00011806,2]
[403824824,1769566238845,-500.0,0.00011806,2]
[403824825,1769566238856,-500.0,0.00011806,2]
[403824826,1769566238865,-500.0,0.00011806,2]
[403824827,1769566238875,-500.0,0.00011806,2]
[403824828,1769566238884,-500.0,0.00011806,2]
[403824829,1769566238894,-500.0,0.00011806,2]
[403824830,1769566238903,-500.0,0.00011806,2]
[403824831,1769566238912,-500.0,0.00011806,2]
[403824832,1769566238922,-500.0,0.00011806,2]
[403824833,1769566238932,-500.0,0.00011806,2]
[403824834,1769566238941,-500.0,0.00011806,2]
[403824835,1769566238951,-500.0,0.00011806,2]
[403824836,1769566238960,-500.0,0.00011806,2]
[403824837,1769566238969,-500.0,0.00011806,2]
[403824838,1769566238978,-500.0,0.00011806,2]
[403824839,1769566238987,-500.0,0.00011806,2]
[403824840,1769566238997,-500.0,0.00011806,2]
[403824841,1769566239006,-500.0,0.00011806,2]
[403824842,1769566239016,-500.0,0.00011806,2]
[403824843,1769566239026,-500.0,0.00011806,2]
[403824844,1769566239036,-500.0,0.00011806,2]
[403824845,1769566239045,-500.0,0.00011806,2]
[403824846,1769566239055,-500.0,0.00011806,2]
[403824847,1769566239064,-500.0,0.00011806,2]
[403824848,1769566239074,-22319.55321559,0.00011809,2]
[403824849,1769566239086,-2169.12779632,0.00011809,2]
[403824850,1769566239096,-1511.5793,0.00011809,2]
[403824851,1769566239107,-1671.12165104,0.00011809,2]
[403824852,1769566239118,-243336.38097621,0.00011809,2]
[403824853,1769566239129,-1076.576635,0.00011809,2]
[403824854,1769566239140,-3073.821,0.00011809,2]
[403824855,1769566239162,-2224.13764967,0.00011809,2]
[403824892,1769566240075,-414.87747967,0.00011809,2]
[403824893,1769566240289,-2261.12917419,0.00011809,2]
[403824894,1769566240953,-1000.0,0.00011809,2]
[403824901,1769566243270,-500.0,0.00011806,2]
[403824902,1769566243279,-500.0,0.00011806,2]
[403824903,1769566243287,-399.79753792,0.00011806,2]
[403824911,1769566246104,-100.20246208,0.00011806,2]
[403824912,1769566246114,-500.0,0.00011806,2]
[403824913,1769566246123,-500.0,0.00011806,2]
[403824914,1769566246133,-500.0,0.00011806,2]
[403824915,1769566246142,-114.99900772,0.00011806,2]
[403824916,1769566246264,-385.00099228,0.00011806,2]
[403824917,1769566246274,-500.0,0.00011806,2]
[403824918,1769566246284,-355.66567439,0.00011806,2]
[403824919,1769566270503,-156.06270442,0.00011635,2]
[403824920,1769566317741,-345.384,0.00011573,2]
[403824921,1769566444999,-5000.0,0.00011689,2]
[403824922,1769566457263,0.01,0.00011689,2]
[403824923,1769566457288,3320.26,0.00011689,2]
[403824925,1769566565243,563.27,0.00034955,120]
[403824926,1769566611487,223.30129141,0.00034955,120]
[403824927,1769566620521,1570.0,0.0001,7]
[403824928,1769566655443,500.0,0.00034955,120]
[403824929,1769566693011,582.24,0.00034955,120]
[403824930,1769566699060,500.0,0.00034955,120]
[403824931,1769566841437,500.0,0.00034931,120]
[403824932,1769566841666,500.0,0.00034931,120]
[403824933,1769566872205,500.0,0.00034931,120]
[403824934,1769566872443,500.0,0.00034931,120]
[403824935,1769566878343,500.0,0.00034931,120]
[403824936,1769566878592,500.0,0.00034931,120]
[403824937,1769566892597,582.24,0.00034931,120]
[403824938,1769566917951,500.0,0.00034931,120]
[403824939,1769567031738,500.0,0.00034931,120]
[403824940,1769567031996,500.0,0.00034931,120]
[403824941,1769567043109,300.0,0.00011707,2]
[403824942,1769567058726,563.27,0.00034937,120]
[403824943,1769567072473,290.1106799,0.00011707,2]
[403824944,1769567074949,500.0,0.00011707,2]
[403824945,1769567074979,500.0,0.00011707,2]
[403824946,1769567075009,500.0,0.00011707,2]
[403824947,1769567075038,500.0,0.00011707,2]
[403824948,1769567075073,500.0,0.00011707,2]
[403824949,1769567075103,500.0,0.00011707,2]
[403824950,1769567075134,254.49388653,0.00011707,2]
[403824951,1769567075167,500.0,0.00011707,2]
[403824952,1769567075195,415.6896628,0.00011707,2]
[403824953,1769567075225,500.0,0.00011707,2]
[403824954,1769567075254,500.0,0.00011707,2]
[403824955,1769567075284,575.78917029,0.00011707,2]
[403824956,1769567075313,500.0,0.00011707,2]
[403824957,1769567075343,500.0,0.00011707,2]
[403824958,1769567075371,500.0,0.00011707,2]
[403824959,1769567075401,500.0,0.00011707,2]
[403824960,1769567075431,500.0,0.00011707,2]
[403824961,1769567075460,589.80078565,0.00011707,2]
[403824962,1769567075490,500.0,0.00011707,2]
[403824963,1769567075518,74.12581483,0.00011707,2]
[403824964,1769567075542,425.87418517,0.00011707,2]
[403824965,1769567075572,500.0,0.00011707,2]
[403824966,1769567075601,500.0,0.00011707,2]
[403824967,1769567075632,500.0,0.00011707,2]
[403824968,1769567075659,500.0,0.00011707,2]
[403824969,1769567075685,500.0,0.00011707,2]
[403824970,1769567075713,500.0,0.00011707,2]
[403824971,1769567075740,500.0,0.00011707,2]
[403824972,1769567075772,500.0,0.00011707,2]
[403824973,1769567075800,500.0,0.00011707,2]
[403824974,1769567075829,500.0,0.00011707,2]
[403824975,1769567075858,500.0,0.00011707,2]
[403824976,1769567075893,500.0,0.00011707,2]
[403824977,1769567075922,500.0,0.00011707,2]
[403824978,1769567075950,500.0,0.00011707,2]
[403824979,1769567075982,500.0,0.00011707,2]
[403824980,1769567076035,500.0,0.00011707,2]
[403824981,1769567076079,500.0,0.00011707,2]
[403824982,1769567076108,500.0,0.00011707,2]
[403824983,1769567110235,500.0,0.00011707,2]
[403824984,1769567110308,74.13581483,0.00011707,2]
[403824985,1769567110331,341.55384797,0.00011707,2]
[403824986,1769567112828,500.0,0.00034937,120]
[403824987,1769567113044,500.0,0.00034937,120]
[403824988,1769567158294,196.89630888,0.00011707,2]
[403824989,1769567164832,285.13975446,0.0001169,2]
[403824990,1769567224623,3285.539,0.00011708,2]
[403824991,1769567256833,161.70658163,0.00034937,120]
[403824992,1769567283007,3360.73034627,0.00034937,120]
[403824994,1769567300844,151.0,0.000301,120]
[403824995,1769567310034,153.59997919,0.0003,120]
[403824999,1769567339580,151.0,0.000301,120]
[403825001,1769567371186,151.0,0.000301,120]
[403825002,1769567423013,151.0,0.000301,120]
[403825018,1769567432010,-3258.47235545,0.00011708,2]
[403825019,1769567432022,-18432.02784208,0.00011708,2]
[403825020,1769567432033,-1228.67557463,0.00011708,2]
[403825021,1769567432044,-821.85039405,0.00011708,2]
[403825022,1769567432055,-7555.25470451,0.00011708,2]
[403825023,1769567432067,-1131.33322625,0.00011708,2]
[403825049,1769567438074,-1697.55159279,0.00011708,2]
[403825061,1769567438182,-1583.79013717,0.00011708,2]
[403825064,1769567438193,-29555.01940752,0.00011708,2]
[403825066,1769567438204,-934736.02476555,0.00011708,2]
[403825068,1769567438213,-262.72991735,0.00011757,2]
[403825070,1769567438223,-500.0,0.00011979,2]
[403825072,1769567438232,-153.90514756,0.00011979,2]
[403825074,1769567438241,-161.63792744,0.00011979,2]
[403825076,1769567438250,-500.0,0.00012116,2]
[403825078,1769567438259,-45702.82496731,0.00012253,2]
[403825080,1769567438268,-531.43742619,0.00012253,2]
[403825082,1769567438278,-300.0,0.00012253,2]
[403825083,1769567438287,-300.0,0.00012253,2]
[403825085,1769567438296,-300.0,0.00012253,2]
[403825087,1769567438305,-300.0,0.00012253,2]
[403825089,1769567438315,-300.0,0.00012253,2]
[403825091,1769567438324,-300.0,0.00012253,2]
[403825094,1769567438333,-300.0,0.00012253,2]
[403825096,1769567438343,-300.0,0.00012253,2]
[403825097,1769567438352,-300.0,0.00012253,2]
[403825100,1769567438361,-300.0,0.00012253,2]
[403825101,1769567438371,-300.0,0.00012253,2]
[403825103,1769567438380,-300.0,0.00012253,2]
[403825105,1769567438390,-300.0,0.00012253,2]
[403825106,1769567438403,-300.0,0.00012253,2]
[403825108,1769567438412,-300.0,0.00012253,2]
[403825109,1769567438421,-600.0,0.00012253,2]
[403825111,1769567438430,-1989.24,0.00012329,2]
[403825112,1769567438439,-2994.27,0.00012329,2]
[403825113,1769567438449,-2495.23,0.00012329,2]
[403825114,1769567438458,-2079.36,0.00012329,2]
[403825115,1769567438467,-1732.8,0.00012329,2]
[403825116,1769567438476,-1444.0,0.00012329,2]
[403825117,1769567438484,-1203.33,0.00012329,2]
[403825118,1769567438494,-1002.78,0.00012329,2]
[403825119,1769567438504,-835.65,0.00012329,2]
[403825120,1769567438512,-696.37,0.00012329,2]
[403825121,1769567438521,-580.31,0.00012329,2]
[403825122,1769567438531,-483.59,0.00012329,2]
[403825123,1769567438540,-402.99,0.00012329,2]
[403825124,1769567438549,-335.83,0.00012329,2]
[403825125,1769567438558,-279.86,0.00012329,2]
[403825126,1769567438566,-233.21,0.00012329,2]
[403825127,1769567438576,-194.34,0.00012329,2]
[403825128,1769567438585,-161.95,0.00012329,2]
[403825129,1769567438594,-809.8,0.00012329,2]
[403825130,1769567438603,-493.91378351,0.00013273,2]
[403825131,1769567438612,-500.0,0.00013273,2]
[403825132,1769567438622,-487.45856891,0.00013273,2]
[403825133,1769567438631,-500.0,0.00013273,2]
[403825134,1769567438640,-545.26007706,0.00013273,2]
[403825135,1769567438650,-500.0,0.00013273,2]
[403825136,1769567438659,-500.0,0.00013273,2]
[403825137,1769567438668,-151.21336505,0.00013424,2]
[403825138,1769567438679,-150.87381515,0.00013424,2]
[403825139,1769567438688,-151.73385512,0.00013424,2]
[403825140,1769567438698,-151.35136944,0.00013424,2]
[403825141,1769567438707,-200.0,0.00013424,2]
[403825142,1769567438716,-720.0,0.00013479,2]
[403825143,1769567438725,-202.39953738,0.00013561,2]
[403825144,1769567438735,-300.0,0.00013673,2]
[403825145,1769567438744,-227.76565714,0.00013698,2]
[403825146,1769567438754,-571.95758249,0.00013698,2]
[403825147,1769567438763,-500.0,0.00013698,2]
[403825148,1769567438772,-500.0,0.00013698,2]
[403825149,1769567438781,-500.0,0.00013698,2]
[403825150,1769567438791,-500.0,0.00013698,2]
[403825151,1769567438799,-514.09451443,0.00013698,2]
[403825152,1769567438808,-504.17700656,0.00013698,2]
[403825153,1769567438819,-926.530212,0.00013699,2]
[403825154,1769567438828,-500.0,0.00013699,2]
[403825155,1769567438837,-160.23105907,0.00013699,2]
[403825156,1769567438847,-646.61967904,0.00013699,2]
[403825157,1769567438856,-500.0,0.00013699,2]
[403825158,1769567438866,-500.0,0.00013699,2]
[403825159,1769567438875,-175.49146446,0.00013699,2]
[403825160,1769567438885,-500.0,0.00013699,2]
[403825161,1769567438895,-532.28183888,0.00013699,2]
[403825162,1769567438904,-500.0,0.00013699,2]
[403825163,1769567438915,-266.74859181,0.00013699,2]
[403825164,1769567439076,-500.0,0.00013699,2]
[403825165,1769567439086,-213.84661778,0.00013699,2]
[403825166,1769567439096,-500.0,0.00013699,2]
[403825167,1769567439105,-500.0,0.00013699,2]
[403825168,1769567439115,-506.10991888,0.00013699,2]
[403825169,1769567439125,-443.49274844,0.00013699,2]
[403825170,1769567439135,-502.14214416,0.00013699,2]
[403825171,1769567439144,-501.67094293,0.00013699,2]
[403825172,1769567439153,-508.49522103,0.00013699,2]
[403825173,1769567439166,-501.77042598,0.00013699,2]
[403825174,1769567439175,-500.0,0.00013699,2]
[403825175,1769567439184,-500.0,0.00013699,2]
[403825176,1769567439195,-500.0,0.00013699,2]
[403825177,1769567439204,-505.03835844,0.00013699,2]
[403825178,1769567439213,-500.0,0.00013699,2]
[403825179,1769567439223,-500.0,0.00013699,2]
[403825180,1769567439234,-500.0,0.00013699,2]
[403825181,1769567439244,-500.0,0.00013699,2]
[403825182,1769567439254,-500.0,0.00013699,2]
[403825183,1769567439263,-500.0,0.00013699,2]
[403825184,1769567439272,-172.30391573,0.00013699,2]
[403825185,1769567439281,-500.0,0.00013699,2]
[403825186,1769567439290,-500.0,0.00013699,2]
[403825187,1769567439300,-501.48666107,0.00013699,2]
[403825188,1769567439309,-508.215482,0.00013699,2]
[403825189,1769567439319,-310.02130247,0.00013757,2]
[403825190,1769567439328,-1000.0,0.00013821,2]
[403825191,1769567439337,-1000.0,0.00013821,2]
[403825192,1769567439346,-1000.0,0.00013821,2]
[403825193,1769567439355,-1000.0,0.00013821,2]
[403825194,1769567439364,-100000.0,0.00014006,2]
[403825195,1769567439373,-300.0,0.00014221,2]
[403825196,1769567439383,-500.0,0.00014247,2]
[403825197,1769567439392,-502.75778254,0.00014247,2]
[403825198,1769567439400,-501.10902322,0.00014247,2]
[403825199,1769567439411,-501.03206151,0.00014247,2]
[403825200,1769567439420,-626.86038304,0.00014247,2]
[403825201,1769567439429,-501.75253763,0.00014247,2]
[403825202,1769567439439,-159.31465189,0.00014247,2]
[403825203,1769567439447,-501.37650527,0.00014247,2]
[403825204,1769567439456,-501.02453225,0.00014247,2]
[403825205,1769567439466,-500.38300474,0.00014247,2]
[403825206,1769567439474,-512.54102297,0.00014247,2]
[403825207,1769567439483,-500.68775555,0.00014247,2]
[403825208,1769567439492,-500.55398267,0.00014247,2]
[403825209,1769567439501,-1001.02999843,0.00014247,2]
[403825210,1769567439511,-501.6271235,0.00014247,2]
[403825211,1769567439520,-632.96300543,0.00014247,2]
[403825212,1769567439529,-500.74029435,0.00014247,2]
[403825213,1769567439538,-501.07670411,0.00014247,2]
[403825214,1769567439548,-500.97218955,0.00014247,2]
[403825215,1769567439557,-1505.80206894,0.00014368,2]
[403825216,1769567439565,-1500.0,0.00014368,2]
[403825217,1769567439574,-1506.71511543,0.00014368,2]
[403825218,1769567439583,-265.37469137,0.00014508,2]
[403825219,1769567439592,-151.44061112,0.00014508,2]
[403825220,1769567439601,-500.0,0.00014508,2]
[403825221,1769567439610,-500.0,0.00014508,2]
[403825222,1769567439619,-500.0,0.00014508,2]
[403825223,1769567439628,-250.0,0.00014508,2]
[403825224,1769567439636,-500.0,0.00014508,2]
[403825225,1769567439645,-250.0,0.00014508,2]
[403825227,1769567439655,-250.0,0.00014508,2]
[403825229,1769567439664,-500.0,0.00014508,2]
[403825230,1769567439674,-500.0,0.00014508,2]
[403825231,1769567439684,-250.0,0.00014508,2]
[403825232,1769567439693,-500.0,0.00014508,2]
[403825233,1769567439702,-250.0,0.00014508,2]
[403825234,1769567439711,-250.0,0.00014508,2]
[403825235,1769567439719,-500.0,0.00014508,2]
[403825236,1769567439728,-250.0,0.00014508,2]
[403825237,1769567439738,-500.0,0.00014508,2]
[403825238,1769567439747,-159.88698825,0.00014508,2]
[403825239,1769567439757,-250.0,0.00014508,2]
[403825240,1769567439766,-151.0,0.00014508,2]
[403825241,1769567439775,-500.0,0.00014508,2]
[403825242,1769567439785,-500.0,0.00014508,2]
[403825243,1769567439794,-151.0,0.00014508,2]
[403825244,1769567439805,-253.84782395,0.00014508,2]
[403825245,1769567439814,-500.0,0.00014508,2]
[403825247,1769567439824,-151.0,0.00014508,2]
[403825249,1769567439834,-202.99767962,0.00014508,2]
[403825250,1769567439843,-201.93286099,0.00014508,2]
[403825251,1769567439852,-2674.60743027,0.00014508,2]
[403825252,1769567439861,-209.40437684,0.00014508,2]
[403825253,1769567439871,-217.15233878,0.00014508,2]
[403825254,1769567439880,-225.18697532,0.00014508,2]
[403825255,1769567439889,-233.51889341,0.00014508,2]
[403825256,1769567439898,-242.15909246,0.00014508,2]
[403825257,1769567439908,-251.11897888,0.00014508,2]
[403825258,1769567439917,-260.4103811,0.00014508,2]
[403825259,1769567439927,-270.0455652,0.00014508,2]
[403825260,1769567439936,-280.03725112,0.00014508,2]
[403825261,1769567439945,-290.39862941,0.00014508,2]
[403825262,1769567439954,-301.1433787,0.00014508,2]
[403825263,1769567439963,-250.0,0.000146,2]
[403825264,1769567439972,-864.0,0.00014826,2]
[403825265,1769567439981,-2773.56790519,0.00015056,2]
[403825266,1769567439991,-2876.18991768,0.00015604,2]
[403825267,1769567440001,-357.31268759,0.00015757,2]
[403825268,1769567440011,-2982.60894464,0.00016152,2]
[403825269,1769567440021,-1000.0,0.00016309,2]
[403825270,1769567440030,-154.22,0.00016338,2]
[403825271,1769567440039,-200.0,0.00016438,2]
[403825272,1769567440049,-3092.96547559,0.000167,2]
[403825273,1769567440059,-1000.0,0.00016834,2]
[403825274,1769567440069,-157.65253593,0.00016986,3]
[403825276,1769567440078,-1369.0,0.00017196,2]
[403825277,1769567440088,-2150.0,0.00017196,2]
[403825278,1769567440097,-418.0,0.00017196,2]
[403825279,1769567440106,-716.0,0.00017196,2]
[403825280,1769567440116,-180.381,0.00017196,2]
[403825281,1769567440126,-824.25,0.00017223,2]
[403825282,1769567440136,-404.60407272,0.00017757,2]
[403825283,1769567440145,-288.67423267,0.00017807,2]
[403825284,1769567440156,-1000.0,0.0001794,2]
[403825285,1769567440166,-244.0,0.0001794,2]
[403825286,1769567440175,-150.169,0.00018005,2]
[403825288,1769567440184,-150.121,0.00018005,2]
[403825289,1769567440195,-150.086,0.00018005,2]
[403825290,1769567440204,-22830.45609635,0.00018082,3]
[403825291,1769567440213,-500.0,0.00018273,2]
[403825292,1769567440222,-500.0,0.00018273,2]
[403825293,1769567440233,-500.0,0.00018273,2]
[403825295,1769567440242,-160.0,0.00018419,2]
[403825297,1769567440251,-1041.66666667,0.00018419,2]
[403825299,1769567440260,-779.0,0.000186,2]
[403825301,1769567440269,-709.0,0.00018615,2]
[403825302,1769567440278,-213.0,0.0001863,4]
[403825303,1769567440288,-709.0,0.00018667,2]
[403825304,1769567440298,-709.0,0.00018694,2]
[403825305,1769567440307,-400.0,0.0001872,2]
[403825306,1769567440316,-709.0,0.00018771,2]
[403825307,1769567440326,-1648.5,0.00018789,2]
[403825308,1769567440335,-709.0,0.00018859,2]
[403825309,1769567440344,-709.0,0.00018888,2]
[403825310,1769567440353,-303.10001603,0.000189,2]
[403825311,1769567440363,-709.0,0.00018908,2]
[403825312,1769567440372,-303.10001603,0.00019089,2]
[403825313,1769567440381,-709.0,0.00019097,2]
[403825314,1769567440390,-475.0,0.000191,2]
[403825315,1769567440399,-475.0,0.000191,2]
[403825316,1769567440408,-475.0,0.000191,2]
[403825317,1769567440417,-846.769,0.00019178,2]
[403825318,1769567440427,-796.05,0.00019178,2]
[403825319,1769567440436,-846.769,0.00019178,2]
[403825320,1769567440446,-240.0,0.00019178,5]
[403825321,1769567440455,-709.0,0.00019217,2]
[403825322,1769567440464,-709.0,0.00019254,2]
[403825323,1769567440473,-303.10001603,0.00019278,2]
[403825325,1769567440484,-709.0,0.00019291,2]
[403825327,1769567440493,-172.4,0.000193,2]
[403825329,1769567440502,-11783.77,0.000193,2]
[403825331,1769567440511,-4513.42,0.000193,2]
[403825333,1769567440520,-709.0,0.000193,2]
[403825335,1769567440530,-709.0,0.0001932,2]
[403825337,1769567440539,-222.7778897,0.00019345,2]
[403825339,1769567440548,-890.22044726,0.00019345,2]
[403825341,1769567440557,-472.36269499,0.00019345,2]
[403825343,1769567440566,-709.0,0.00019426,2]
[403825345,1769567440575,-709.0,0.00019447,2]
[403825347,1769567440583,-300.0,0.00019452,5]
[403825349,1769567440592,-298.49895743,0.00019467,2]
[403825350,1769567440602,-709.0,0.00019518,2]
[403825351,1769567440611,-400.0,0.00019551,2]
[403825352,1769567440621,-709.0,0.00019566,2]
[403825353,1769567440630,-400.0,0.00019578,2]
[403825354,1769567440640,-709.0,0.00019588,2]
[403825355,1769567440649,-677.421,0.00019589,3]
[403825356,1769567440658,-169.201,0.00019589,3]
[403825357,1769567440667,-45660.8,0.000197,3]
[403825358,1769567440676,-300.0,0.00019726,5]
[403825359,1769567440685,-1000.0,0.00019734,2]
[403825360,1769567440694,-492.0,0.00019734,2]
[403825361,1769567440703,-400.0,0.00019755,2]
[403825362,1769567440712,-451.89545784,0.00019757,2]
[403825363,1769567440722,-400.0,0.0001976,2]
[403825364,1769567440733,-709.0,0.00019769,2]
[403825365,1769567440742,-421.0,0.00019839,2]
[403825366,1769567440751,-730.0,0.00019871,2]
[403825367,1769567440760,-730.0,0.00019871,2]
[403825368,1769567440770,-400.0,0.00019871,2]
[403825369,1769567440779,-400.0,0.00019898,2]
[403825370,1769567440788,-491.99468429,0.0001996,2]
[403825371,1769567440798,-1650.783913,0.0001996,5]
[403825372,1769567440807,-1000.0,0.0001998,5]
[403825373,1769567440817,-2000.0,0.0002,7]
[403825374,1769567440826,-275963.11789102,0.0002,2]